bitfinex/quotes_BTCUSD_20240620
["timestamp","ask_amount","ask_price","bid_price","bid_amount"]
[1718853092647,0.942383,65216.0,65215.0,0.156946]
[1718853092853,0.95192435,65216.0,65215.0,0.156946]
[1718853093674,0.96290435,65216.0,65215.0,0.156946]
[1718853094230,1.0777412,65216.0,65215.0,0.156946]
[1718853094426,1.0777412,65216.0,65215.0,0.001946]
[1718853094427,1.42213847,65216.0,65215.0,0.001946]
[1718853096716,1.36243847,65216.0,65215.0,0.001946]
[1718853096868,1.42213847,65216.0,65215.0,0.001946]
[1718853098725,2.17103747,65216.0,65215.0,0.001946]
[1718853099026,2.21437376,65216.0,65215.0,0.001946]
[1718853103405,2.21437376,65216.0,65215.0,0.152346]
[1718853103406,1.92789023,65216.0,65215.0,0.152346]
[1718853103600,1.54356423,65216.0,65215.0,0.152346]
[1718853103799,1.55600309,65216.0,65215.0,0.152346]
[1718853104003,1.69379256,65216.0,65215.0,0.152346]
[1718853104321,1.84712956,65216.0,65215.0,0.152346]
[1718853104679,1.89046585,65216.0,65215.0,0.152346]
[1718853105061,1.87948585,65216.0,65215.0,0.152346]
[1718853106068,1.97948585,65216.0,65215.0,0.152346]
[1718853107681,2.15516938,65216.0,65215.0,0.001946]
[1718853108277,2.09546938,65216.0,65215.0,0.001946]
[1718853108487,2.15516938,65216.0,65215.0,0.001946]
[1718853109180,2.30516938,65216.0,65215.0,0.001946]
[1718853109327,2.31614938,65216.0,65215.0,0.001946]
[1718853109632,2.31767156,65216.0,65215.0,0.001946]
[1718853110416,2.31767156,65216.0,65215.0,0.000946]
[1718853110610,2.31093194,65216.0,65215.0,0.000946]
[1718853110819,2.31049045,65216.0,65215.0,0.001946]
[1718853112355,2.16079045,65216.0,65215.0,0.001946]
[1718853112557,2.22049045,65216.0,65215.0,0.001946]
[1718853113048,2.22049045,65216.0,65213.0,0.009471]
[1718853113049,1.380069,65214.0,65213.0,0.009471]
[1718853113179,1.77991109,65214.0,65213.0,0.009471]
[1718853113380,1.82432678,65214.0,65213.0,0.009471]
[1718853113610,3.31773678,65214.0,65213.0,0.009471]
[1718853114505,3.32901678,65214.0,65213.0,0.009471]
[1718853115592,3.33501678,65214.0,65213.0,0.009471]
[1718853115815,3.34201678,65214.0,65213.0,0.009471]
[1718853116191,3.27911678,65214.0,65213.0,0.009471]
[1718853116402,3.07408345,65214.0,65213.0,0.009471]
[1718853116611,3.21182178,65214.0,65213.0,0.009471]
[1718853118054,3.07408345,65214.0,65213.0,0.009471]
[1718853118284,3.21181009,65214.0,65213.0,0.009471]
[1718853119576,2.90867509,65214.0,65213.0,0.009471]
[1718853119776,2.83805209,65214.0,65213.0,0.009471]
[1718853120007,2.82729909,65214.0,65213.0,0.009471]
[1718853120298,2.65778809,65214.0,65213.0,0.009471]
[1718853120436,2.45791709,65214.0,65213.0,0.009471]
[1718853121779,2.15123509,65214.0,65213.0,0.009471]
[1718853121984,1.75134009,65214.0,65213.0,0.15025272]
[1718853122217,1.67331345,65214.0,65213.0,0.22915272]
[1718853122441,1.62889776,65214.0,65213.0,0.22915272]
[1718853122760,1.61761776,65214.0,65213.0,0.22915272]
[1718853123192,1.61761776,65214.0,65213.0,0.152871]
[1718853125304,1.64528636,65214.0,65213.0,0.152871]
[1718853125486,1.50976036,65214.0,65213.0,0.152871]
[1718853125913,1.56946036,65214.0,65213.0,0.152871]
[1718853126528,1.50976036,65214.0,65213.0,0.152871]
[1718853126729,1.26277836,65214.0,65213.0,0.152871]
[1718853128385,1.19235536,65214.0,65213.0,0.152871]
[1718853128807,1.25205536,65214.0,65213.0,0.152871]
[1718853131570,1.24182236,65214.0,65213.0,0.152871]
[1718853133028,0.27588364,65214.0,65213.0,0.172871]
[1718853133140,0.58256564,65214.0,65213.0,0.172871]
[1718853133348,0.27588364,65214.0,65213.0,0.172871]
[1718853134035,0.40781796,65216.0,65214.0,0.02]
[1718853134266,0.62007908,65216.0,65215.0,0.1631]
[1718853134632,0.62085396,65216.0,65215.0,0.1631]
[1718853134837,0.213036,65216.0,65215.0,0.1631]
[1718853135051,0.153336,65216.0,65215.0,0.1631]
[1718853135219,0.213034,65217.0,65216.0,0.1627]
[1718853136078,0.28954331,65218.0,65217.0,0.1675]
[1718853136290,0.1810463,65218.0,65217.0,0.1675]
[1718853136489,0.3343773,65218.0,65217.0,0.1675]
[1718853137422,0.3343773,65218.0,65217.0,0.1685]
[1718853138683,0.1213463,65218.0,65217.0,0.1685]
[1718853138866,0.0213463,65218.0,65217.0,0.1685]
[1718853139028,0.1810463,65218.0,65217.0,0.1685]
[1718853139241,0.1810463,65218.0,65217.0,0.1705]
[1718853140914,0.1810463,65218.0,65217.0,0.1505]
[1718853141129,0.1213463,65218.0,65217.0,0.1505]
[1718853141523,0.1213463,65218.0,65217.0,0.323834]
[1718853141844,0.0213463,65218.0,65217.0,0.1705]
[1718853142167,0.1213463,65218.0,65217.0,0.1705]
[1718853143089,0.0213463,65218.0,65217.0,0.323834]
[1718853144108,0.03268186,65218.0,65217.0,0.323834]
[1718853144961,0.03268186,65218.0,65217.0,0.1705]
[1718853146449,0.03223638,65218.0,65217.0,0.323834]
[1718853149176,0.03232003,65218.0,65217.0,0.323834]
[1718853151564,0.03232003,65218.0,65217.0,0.1705]
[1718853153687,0.03232003,65218.0,65217.0,0.323834]
[1718853158052,0.03248306,65218.0,65217.0,0.323834]
[1718853161794,0.03248306,65218.0,65217.0,0.1705]
[1718853169114,0.0213463,65218.0,65217.0,0.1705]
[1718853169314,0.03112233,65218.0,65217.0,0.1705]
[1718853172174,0.03112825,65218.0,65217.0,0.1705]
[1718853174202,0.03107892,65218.0,65217.0,0.1705]
[1718853178011,0.02129697,65218.0,65217.0,0.1705]
[1718853178224,0.03103611,65218.0,65217.0,0.1705]
[1718853180374,0.18436711,65218.0,65217.0,0.1705]
[1718853180710,0.28436711,65218.0,65217.0,0.1705]
[1718853181686,0.13103611,65218.0,65217.0,0.1705]
[1718853182203,0.03103611,65218.0,65217.0,0.1705]
[1718853184479,0.03103611,65218.0,65217.0,0.640502]
[1718853186474,0.03103611,65218.0,65217.0,0.638502]
[1718853186886,0.03103611,65218.0,65217.0,0.641502]
[1718853187477,0.03103611,65218.0,65217.0,0.645502]
[1718853188043,0.03103611,65218.0,65217.0,0.646448]
[1718853190982,0.02129697,65218.0,65217.0,0.646448]
[1718853191158,0.03083737,65218.0,65217.0,0.646448]
[1718853191803,0.03083737,65218.0,65217.0,0.636448]
[1718853195567,0.03083737,65218.0,65217.0,0.646448]
[1718853201858,0.03083737,65218.0,65217.0,0.636448]
[1718853202687,0.02129697,65218.0,65217.0,0.636448]
[1718853202977,0.03113946,65218.0,65217.0,0.636448]
[1718853207458,0.03088131,65218.0,65217.0,0.636448]
[1718853208895,0.02129697,65218.0,65217.0,0.636448]
[1718853209221,0.03083379,65218.0,65217.0,0.636448]
[1718853214491,0.03083379,65218.0,65217.0,0.646448]
[1718853215578,0.03083379,65218.0,65217.0,0.636448]
[1718853217231,0.02129697,65218.0,65217.0,0.646448]
[1718853217433,0.03129535,65218.0,65217.0,0.646448]
[1718853217689,0.03129535,65218.0,65217.0,0.636448]
[1718853218836,0.03129535,65218.0,65217.0,0.646448]
[1718853219464,0.03129535,65218.0,65217.0,0.636448]
[1718853220483,0.03129535,65218.0,65217.0,0.32978]
[1718853221919,0.03129535,65218.0,65217.0,0.176446]
[1718853222304,0.03129535,65218.0,65217.0,0.008946]
[1718853222516,0.81025235,65218.0,65217.0,0.008946]
[1718853222748,1.33181493,65218.0,65217.0,0.008946]
[1718853223151,1.21691535,65218.0,65217.0,0.008946]
[1718853223978,1.20691697,65218.0,65217.0,0.008946]
[1718853224179,1.21645248,65218.0,65217.0,0.008946]
[1718853224762,1.21645248,65218.0,65217.0,0.004946]
[1718853225183,1.21645217,65218.0,65217.0,0.001946]
[1718853226263,1.33125889,65218.0,65217.0,0.001946]
[1718853226727,1.21645217,65218.0,65217.0,0.001946]
[1718853227285,1.33121948,65218.0,65217.0,0.001946]
[1718853230352,1.33117352,65218.0,65217.0,0.001946]
[1718853231218,1.21645217,65218.0,65217.0,0.001946]
[1718853234520,1.0418242,65218.0,65217.0,0.001946]
[1718853235399,1.1828552,65218.0,65217.0,0.001946]
[1718853235698,1.20290439,65218.0,65217.0,0.001946]
[1718853238567,1.19040434,65218.0,65217.0,0.001946]
[1718853239233,1.19040434,65218.0,65217.0,0.021946]
[1718853240512,0.57707834,65218.0,65217.0,0.106646]
[1718853240688,0.57707834,65218.0,65217.0,0.175846]
[1718853243226,0.88374134,65218.0,65217.0,0.175846]
[1718853244946,0.88374134,65218.0,65217.0,0.174846]
[1718853245392,0.88374134,65218.0,65217.0,0.154846]
[1718853245596,0.88374134,65218.0,65217.0,0.174846]
[1718853245799,0.88374134,65218.0,65217.0,0.154846]
[1718853246336,0.88374134,65218.0,65217.0,0.174846]
[1718853246527,0.88374134,65218.0,65217.0,0.175846]
[1718853247019,0.88374134,65218.0,65217.0,0.174846]
[1718853247354,0.88374134,65218.0,65217.0,0.175846]
[1718853249745,0.87420614,65218.0,65217.0,0.175846]
[1718853249950,0.88373794,65218.0,65217.0,0.175846]
[1718853250595,0.88459794,65218.0,65217.0,0.175846]
[1718853254835,0.87506614,65218.0,65217.0,0.175846]
[1718853256804,0.88459767,65218.0,65217.0,0.175846]
[1718853260112,0.88459767,65218.0,65217.0,0.155846]
[1718853260351,0.88459767,65218.0,65217.0,0.175846]
[1718853260567,0.88459767,65218.0,65217.0,0.155846]
[1718853263027,0.88459767,65218.0,65217.0,0.175846]
[1718853263427,0.88459767,65218.0,65217.0,0.155846]
[1718853265436,0.88459767,65218.0,65217.0,0.175846]
[1718853267669,0.87506614,65218.0,65217.0,0.175846]
[1718853267884,0.88459746,65218.0,65217.0,0.175846]
[1718853268115,0.99930579,65218.0,65217.0,0.175846]
[1718853273837,0.99930579,65218.0,65217.0,0.001946]
[1718853275219,0.99949318,65218.0,65217.0,0.001946]
[1718853275522,0.99949318,65218.0,65217.0,0.021946]
[1718853276183,0.99949318,65218.0,65217.0,0.001946]
[1718853276404,0.99949318,65218.0,65217.0,0.021946]
[1718853277778,0.12528704,65218.0,65217.0,0.176446]
[1718853277983,0.01039132,65218.0,65217.0,0.176446]
[1718853278329,0.01039132,65218.0,65217.0,0.186446]
[1718853279721,0.01039132,65218.0,65217.0,0.185446]
[1718853279935,0.01039132,65218.0,65217.0,0.189446]
[1718853280290,0.01039132,65218.0,65217.0,0.193446]
[1718853281439,0.01039132,65218.0,65217.0,0.34678]
[1718853283139,0.01039132,65218.0,65217.0,0.33678]
[1718853283771,0.01039132,65218.0,65217.0,0.34678]
[1718853286203,0.01039132,65218.0,65217.0,0.33678]
[1718853286836,0.0597,65227.0,65218.0,0.161]
[1718853287010,0.460799,65226.0,65225.0,0.02]
[1718853288440,0.467799,65226.0,65225.0,0.021]
[1718853289028,0.59353659,65226.0,65225.0,0.021]
[1718853296864,0.60307989,65226.0,65225.0,0.021]
[1718853299212,0.60307989,65226.0,65225.0,0.001]
[1718853299413,0.73952664,65226.0,65225.0,0.001]
[1718853299888,0.62467989,65226.0,65225.0,0.001]
[1718853300228,1.17712759,65226.0,65225.0,0.001]
[1718853300439,1.39049301,65226.0,65225.0,0.001]
[1718853302151,1.40009301,65226.0,65225.0,0.001]
[1718853303392,1.45979301,65226.0,65225.0,0.001]
[1718853304201,1.43819301,65226.0,65225.0,0.001]
[1718853304469,1.15316701,65226.0,65225.0,0.001]
[1718853304756,1.45979301,65226.0,65225.0,0.001]
[1718853304959,1.15316701,65226.0,65225.0,0.001]
[1718853305542,1.45979301,65226.0,65225.0,0.001]
[1718853308145,1.09346701,65226.0,65225.0,0.001]
[1718853308294,1.15316701,65226.0,65225.0,0.001]
[1718853308679,1.15230701,65226.0,65225.0,0.001]
[1718853309297,1.07101,65226.0,65225.0,0.021]
[1718853310116,1.07101,65226.0,65225.0,0.1753]
[1718853310117,0.61182288,65226.0,65225.0,0.1753]
[1718853310660,0.61182458,65226.0,65225.0,0.1753]
[1718853311487,0.60222458,65226.0,65225.0,0.1753]
[1718853311727,0.61177211,65226.0,65225.0,0.1753]
[1718853312011,0.60222412,65226.0,65225.0,0.1753]
[1718853313752,0.60222412,65226.0,65225.0,0.176246]
[1718853314158,0.60308412,65226.0,65225.0,0.176246]
[1718853317946,0.60307992,65226.0,65225.0,0.176246]
[1718853318856,0.90970592,65226.0,65225.0,0.021946]
[1718853319354,1.02461854,65226.0,65225.0,0.021946]
[1718853319557,0.90970592,65226.0,65225.0,0.021946]
[1718853320627,1.38229304,65226.0,65225.0,0.001946]
[1718853324868,1.36889304,65226.0,65225.0,0.001946]
[1718853325422,1.38229304,65226.0,65225.0,0.001946]
[1718853325638,2.39222604,65226.0,65225.0,0.001946]
[1718853325850,2.37450096,65226.0,65225.0,0.001946]
[1718853326983,2.17200651,65226.0,65225.0,0.001946]
[1718853327211,2.19944068,65226.0,65225.0,0.001946]
[1718853327412,2.35275368,65226.0,65225.0,0.001946]
[1718853327732,2.45275368,65226.0,65225.0,0.001946]
[1718853327932,2.45275368,65226.0,65213.0,0.08575272]
[1718853327933,1.08672,65218.0,65213.0,0.08575272]
[1718853328082,1.61518745,65218.0,65213.0,0.08575272]
[1718853328482,1.393406,65217.0,65213.0,0.009471]
[1718853328670,0.46008,65206.0,65205.0,0.009471]
[1718853328786,1.10339016,65206.0,65205.0,0.009471]
[1718853328991,1.39532445,65206.0,65205.0,0.009471]
[1718853330532,1.38578112,65206.0,65205.0,0.009471]
[1718853330736,1.40442324,65206.0,65205.0,0.009471]
[1718853331318,1.40442324,65206.0,65205.0,0.014471]
[1718853331890,1.40442324,65206.0,65205.0,0.017471]
[1718853332098,1.40442324,65206.0,65205.0,0.009471]
[1718853334261,1.40542324,65206.0,65205.0,0.009471]
[1718853336923,1.90239324,65206.0,65205.0,0.009471]
[1718853337129,1.9564782,65206.0,65205.0,0.009471]
[1718853338246,1.9347452,65206.0,65205.0,0.009471]
[1718853340849,1.8976312,65206.0,65205.0,0.009471]
[1718853342414,1.92520046,65206.0,65205.0,0.009471]
[1718853343215,1.83754646,65206.0,65205.0,0.009471]
[1718853343455,1.87838046,65206.0,65205.0,0.009471]
[1718853343905,1.60530446,65206.0,65205.0,0.177271]
[1718853344105,1.62659946,65206.0,65205.0,0.157271]
[1718853344224,1.4329925,65206.0,65205.0,0.177271]
[1718853344677,1.4329925,65206.0,65205.0,0.157271]
[1718853344882,1.43097371,65206.0,65205.0,0.157271]
[1718853347572,1.43097371,65206.0,65205.0,0.177271]
[1718853347908,1.41435038,65206.0,65205.0,0.177271]
[1718853348069,1.43089863,65206.0,65205.0,0.177271]
[1718853348271,1.37119863,65206.0,65205.0,0.177271]
[1718853348545,1.43089863,65206.0,65205.0,0.177271]
[1718853350305,1.43089863,65206.0,65205.0,0.157271]
[1718853350699,1.43089863,65206.0,65205.0,0.009471]
[1718853353495,2.20433163,65206.0,65205.0,0.009471]
[1718853353674,2.25640913,65206.0,65205.0,0.009471]
[1718853359163,2.25341777,65206.0,65205.0,0.009471]
[1718853359928,2.23033277,65206.0,65205.0,0.009471]
[1718853360526,2.53705277,65206.0,65205.0,0.009471]
[1718853360903,2.56395277,65206.0,65205.0,0.009471]
[1718853363336,2.57637277,65206.0,65205.0,0.009471]
[1718853364101,2.48977277,65206.0,65205.0,0.009471]
[1718853364324,2.54947277,65206.0,65205.0,0.009471]
[1718853367200,2.35370864,65206.0,65205.0,0.009471]
[1718853367404,2.66042864,65206.0,65205.0,0.099871]
[1718853367644,2.06761839,65206.0,65205.0,0.099871]
[1718853367815,2.12731839,65206.0,65205.0,0.099871]
[1718853368422,1.76089839,65206.0,65205.0,0.099871]
[1718853368677,1.87526064,65206.0,65205.0,0.099871]
[1718853368816,1.93496064,65206.0,65205.0,0.099871]
[1718853369012,1.56854064,65206.0,65205.0,0.188171]
[1718853369215,0.72704736,65206.0,65205.0,0.188171]
[1718853370037,0.72604736,65206.0,65205.0,0.188171]
[1718853370603,0.71362736,65206.0,65205.0,0.188171]
[1718853370825,0.40690736,65206.0,65205.0,0.188171]
[1718853371580,0.71362736,65206.0,65205.0,0.188171]
[1718853372318,0.71462736,65206.0,65205.0,0.188171]
[1718853372659,0.71362736,65206.0,65205.0,0.188171]
[1718853372882,0.71362736,65206.0,65205.0,0.193171]
[1718853373526,0.71362736,65206.0,65205.0,0.198171]
[1718853374880,0.59926511,65206.0,65205.0,0.198171]
[1718853376395,0.29254511,65206.0,65205.0,0.198171]
[1718853378608,0.27752288,65206.0,65205.0,0.198171]
[1718853379014,0.27838288,65206.0,65205.0,0.198171]
[1718853379928,0.29355143,65206.0,65205.0,0.198171]
[1718853381082,0.27838288,65206.0,65205.0,0.198171]
[1718853384904,0.29339412,65206.0,65205.0,0.198171]
[1718853389619,0.2929621,65206.0,65205.0,0.198171]
[1718853390558,0.29290109,65206.0,65205.0,0.198171]
[1718853393745,0.14294747,65206.0,65205.0,0.198171]
[1718853397956,0.14294747,65206.0,65205.0,0.351533]
[1718853398163,0.14294747,65206.0,65205.0,0.42781472]
[1718853398776,0.11537821,65206.0,65205.0,0.73453872]
[1718853398927,0.01537821,65206.0,65205.0,1.11096272]
[1718853399117,0.01628315,65206.0,65205.0,1.11096272]
[1718853399350,0.00086,65206.0,65205.0,1.11096272]
[1718853399762,0.0170777,65206.0,65205.0,1.11096272]
[1718853401378,0.0170777,65206.0,65205.0,1.10596272]
[1718853402483,0.0170777,65206.0,65205.0,1.10096272]
[1718853402688,0.0170777,65206.0,65205.0,1.04126272]
[1718853402910,0.0180777,65206.0,65205.0,1.11496272]
[1718853403118,0.0180777,65206.0,65205.0,1.12896272]
[1718853405380,0.0180777,65206.0,65205.0,1.06926272]
[1718853409204,0.01754353,65206.0,65205.0,1.06926272]
[1718853411179,0.01795846,65206.0,65205.0,1.06926272]
[1718853415338,0.01872415,65206.0,65205.0,1.06926272]
[1718853423314,0.00186,65206.0,65205.0,1.06926272]
[1718853423501,0.01878069,65206.0,65205.0,1.06926272]
[1718853423907,0.01878069,65206.0,65205.0,1.37598672]
[1718853424341,0.01878069,65206.0,65205.0,1.34598672]
[1718853424544,0.01878069,65206.0,65205.0,1.37598672]
[1718853425561,0.01878069,65206.0,65205.0,1.43568672]
[1718853429974,0.459969,65222.0,65221.0,0.02]
[1718853430171,0.559969,65222.0,65221.0,0.02]
[1718853431571,0.565969,65222.0,65221.0,0.02]
[1718853433105,0.564969,65222.0,65221.0,0.02]
[1718853433301,0.04054197,65222.0,65221.0,0.173324]
[1718853433610,0.001,65222.0,65221.0,0.183324]
[1718853433804,0.002,65222.0,65221.0,0.173324]
[1718853434315,0.03466554,65225.0,65221.0,0.02]
[1718853434468,0.03466554,65225.0,65224.0,0.02]
[1718853434634,0.154173,65226.0,65225.0,0.02]
[1718853434829,0.10086,65226.0,65225.0,0.02]
[1718853437271,0.10086,65226.0,65225.0,0.028]
[1718853437673,0.10186,65226.0,65225.0,0.036]
[1718853438118,0.10086,65226.0,65225.0,0.02]
[1718853438345,0.10186,65226.0,65225.0,0.031]
[1718853438794,0.13418014,65226.0,65225.0,0.031]
[1718853440122,0.14853794,65226.0,65225.0,0.042]
[1718853445786,0.04853794,65226.0,65225.0,0.1995]
[1718853447852,0.0162178,65226.0,65225.0,0.1995]
[1718853460472,0.0153346,65226.0,65225.0,0.1995]
[1718853464588,0.016057,65226.0,65225.0,0.1995]
[1718853469298,0.016057,65226.0,65225.0,0.1999]
[1718853479167,0.01550349,65226.0,65225.0,0.1999]
[1718853482094,0.01550212,65226.0,65225.0,0.1999]
[1718853484290,0.01550212,65226.0,65225.0,0.353215]
[1718853485880,0.01550212,65226.0,65225.0,0.363215]
[1718853486082,0.01550212,65226.0,65225.0,0.511945]
[1718853486277,0.01550212,65226.0,65225.0,0.665745]
[1718853487341,0.01550212,65226.0,65225.0,0.972375]
[1718853490725,0.01550212,65226.0,65225.0,0.962375]
[1718853490958,0.0009768,65226.0,65225.0,0.972375]
[1718853491465,0.01699644,65226.0,65225.0,0.972375]
[1718853493914,0.01699644,65226.0,65225.0,0.962375]
[1718853493915,0.0009768,65226.0,65225.0,0.962375]
[1718853495184,0.01635125,65226.0,65225.0,0.962375]
[1718853497598,0.0009768,65226.0,65225.0,0.962375]
[1718853497988,0.01457036,65226.0,65225.0,0.962375]
[1718853499096,0.01457036,65226.0,65225.0,0.655745]
[1718853499290,0.01457036,65226.0,65225.0,0.042]
[1718853499667,0.16788336,65226.0,65225.0,0.042]
[1718853499959,0.16788336,65226.0,65225.0,0.022]
[1718853499960,0.80053536,65226.0,65225.0,0.022]
[1718853501260,0.91537828,65226.0,65225.0,0.022]
[1718853502294,0.9153697,65226.0,65225.0,0.022]
[1718853502705,0.91370087,65226.0,65225.0,0.022]
[1718853503133,0.91369967,65226.0,65225.0,0.022]
[1718853504832,0.91369967,65226.0,65225.0,0.022946]
[1718853505036,0.91455967,65226.0,65225.0,0.022946]
[1718853507057,0.79972653,65226.0,65225.0,0.022946]
[1718853509252,0.79972653,65226.0,65225.0,0.042946]
[1718853509465,0.47370053,65226.0,65225.0,0.042946]
[1718853509810,0.01376153,65226.0,65225.0,0.196546]
[1718853509935,0.16707453,65226.0,65225.0,0.196546]
[1718853512419,0.16639477,65226.0,65225.0,0.196546]
[1718853517238,0.47302077,65226.0,65225.0,0.176546]
[1718853517435,1.10567277,65226.0,65225.0,0.022946]
[1718853518632,1.16537277,65226.0,65225.0,0.022946]
[1718853520256,1.10567277,65226.0,65225.0,0.042946]
[1718853520455,0.77964677,65226.0,65225.0,0.042946]
[1718853520686,0.01308177,65226.0,65225.0,0.196246]
[1718853520886,0.16639477,65226.0,65225.0,0.196246]
[1718853524691,0.01308177,65226.0,65225.0,0.196246]
[1718853533292,0.01291332,65228.0,65227.0,0.02]
[1718853533516,0.153308,65228.0,65227.0,0.02]
[1718853535155,0.153308,65228.0,65227.0,0.028]
[1718853535502,0.253308,65228.0,65227.0,0.028]
[1718853535930,0.253308,65228.0,65227.0,0.036]
[1718853535931,0.254308,65228.0,65227.0,0.036]
[1718853536360,0.560924,65228.0,65227.0,0.036]
[1718853536745,1.174156,65228.0,65227.0,0.016]
[1718853537533,1.28898914,65228.0,65227.0,0.016]
[1718853538162,1.28974921,65228.0,65227.0,0.016]
[1718853539583,1.34944921,65228.0,65227.0,0.016]
[1718853541607,1.28974921,65228.0,65227.0,0.036]
[1718853542438,1.175016,65228.0,65227.0,0.036]
[1718853542585,0.98319637,65228.0,65227.0,0.036]
[1718853543171,0.8684,65228.0,65227.0,0.036]
[1718853543397,0.87793311,65228.0,65227.0,0.036]
[1718853543958,0.99273386,65228.0,65227.0,0.11228172]
[1718853544161,0.01139311,65228.0,65227.0,0.11228172]
[1718853544410,0.01139311,65228.0,65227.0,0.26388172]
[1718853544615,0.01139311,65228.0,65227.0,0.27388172]
[1718853544813,0.01139311,65228.0,65227.0,0.26388172]
[1718853545799,0.01192933,65228.0,65227.0,0.26388172]
[1718853548221,0.01192933,65228.0,65227.0,0.1876]
[1718853549039,0.01192933,65228.0,65227.0,0.34091]
[1718853557837,0.01192933,65228.0,65227.0,0.1876]
[1718853560337,0.01192933,65228.0,65227.0,0.18452997]
[1718853562059,0.01192933,65228.0,65227.0,0.33783997]
[1718853566699,0.09717319,65233.0,65227.0,0.33783997]
[1718853566878,0.09717319,65233.0,65232.0,0.02]
[1718853567482,0.153296,65233.0,65232.0,0.02]
[1718853568103,0.153296,65233.0,65232.0,0.1767]
[1718853568944,0.253296,65233.0,65232.0,0.1767]
[1718853570240,0.254156,65233.0,65232.0,0.1767]
[1718853570599,0.254156,65233.0,65232.0,0.024]
[1718853571786,0.2849487,65233.0,65232.0,0.024]
[1718853572866,0.2847336,65233.0,65232.0,0.024]
[1718853574200,0.39942568,65233.0,65232.0,0.024]
[1718853574933,0.2847336,65233.0,65232.0,0.024]
[1718853575327,0.39942568,65233.0,65232.0,0.024]
[1718853575977,0.2847336,65233.0,65232.0,0.024]
[1718853576546,0.2847336,65233.0,65232.0,0.004]
[1718853576547,0.73111868,65233.0,65232.0,0.004]
[1718853576754,1.08510345,65233.0,65232.0,0.004]
[1718853577022,1.39169645,65233.0,65232.0,0.004]
[1718853577959,0.459924,65228.0,65227.0,0.000946]
[1718853578159,0.55424673,65228.0,65227.0,0.000946]
[1718853578291,0.80116273,65228.0,65227.0,0.020946]
[1718853578515,0.86086273,65228.0,65227.0,0.020946]
[1718853578716,0.85134,65228.0,65227.0,0.020946]
[1718853579083,0.86086198,65228.0,65227.0,0.020946]
[1718853580548,0.86086198,65228.0,65227.0,0.024946]
[1718853580715,0.83576198,65228.0,65227.0,0.029946]
[1718853581964,0.46944598,65228.0,65227.0,0.029946]
[1718853582352,0.16282998,65228.0,65227.0,0.029946]
[1718853583882,0.00952198,65228.0,65227.0,0.029946]
[1718853584088,0.00952198,65230.0,65227.0,0.098446]
[1718853584223,0.1,65231.0,65230.0,0.0885]
[1718853584431,0.10952281,65231.0,65230.0,0.1747]
[1718853585473,0.10952281,65231.0,65230.0,0.1757]
[1718853586751,0.10952281,65231.0,65230.0,0.942217]
[1718853586860,0.10952281,65231.0,65230.0,0.952217]
[1718853586861,0.00952281,65231.0,65230.0,0.952217]
[1718853587060,0.00086,65233.0,65232.0,0.345098]
[1718853587262,0.00086,65233.0,65232.0,1.017992]
[1718853587474,0.00086,65233.0,65232.0,1.324589]
[1718853587689,0.01038409,65233.0,65232.0,1.324589]
[1718853587895,0.01038665,65233.0,65232.0,1.324589]
[1718853588900,0.01138665,65233.0,65232.0,1.338589]
[1718853589233,0.01138665,65233.0,65232.0,1.49115012]
[1718853589433,0.00186,65233.0,65232.0,1.59315012]
[1718853590229,0.00186,65233.0,65232.0,1.57915012]
[1718853590230,0.00086,65233.0,65232.0,1.57915012]
[1718853590434,0.00086,65233.0,65232.0,1.59315012]
[1718853590626,0.00186,65233.0,65232.0,1.60715012]
[1718853590832,0.00086,65233.0,65232.0,1.59315012]
[1718853591035,0.00086,65233.0,65232.0,1.57915012]
[1718853591481,0.00086,65233.0,65232.0,1.59315012]
[1718853591955,0.00186,65233.0,65232.0,1.60715012]
[1718853595296,0.00186,65233.0,65232.0,1.44545012]
[1718853595494,0.00186,65233.0,65232.0,1.50515012]
[1718853598443,0.0249457,65247.0,65246.0,0.01]
[1718853598819,0.0249457,65247.0,65246.0,0.02]
[1718853598820,0.00953214,65247.0,65246.0,0.02]
[1718853599986,0.00953214,65247.0,65246.0,0.029]
[1718853600348,0.01053214,65247.0,65246.0,0.039]
[1718853603355,0.01139214,65247.0,65246.0,0.039]
[1718853605984,0.01139214,65247.0,65246.0,0.644698]
[1718853606165,0.01139214,65247.0,65246.0,0.654698]
[1718853606362,0.01139214,65247.0,65246.0,0.644698]
[1718853606568,0.01139214,65247.0,65246.0,0.654698]
[1718853606987,0.01139214,65247.0,65246.0,0.644698]
[1718853607325,0.01139214,65247.0,65246.0,0.654698]
[1718853607905,0.01139214,65247.0,65246.0,0.644698]
[1718853608304,0.01139214,65247.0,65246.0,0.654698]
[1718853608508,0.01139177,65247.0,65246.0,0.654698]
[1718853608726,0.01139177,65247.0,65246.0,0.644698]
[1718853610964,0.01139177,65247.0,65246.0,0.338166]
[1718853611368,0.01139177,65247.0,65246.0,0.644698]
[1718853612392,0.01139177,65247.0,65246.0,0.338166]
[1718853614200,0.01139588,65247.0,65246.0,0.338166]
[1718853615323,0.01139588,65247.0,65246.0,0.644698]
[1718853616069,0.01139588,65247.0,65246.0,0.95123]
[1718853616245,0.01139588,65247.0,65246.0,0.96123]
[1718853617819,0.01139588,65247.0,65246.0,1.42032312]
[1718853618839,0.01139588,65247.0,65246.0,1.41132312]
[1718853620373,0.01139588,65247.0,65246.0,1.42532312]
[1718853620801,0.00186,65247.0,65246.0,1.41132312]
[1718853621176,0.00186,65247.0,65246.0,1.41532312]
[1718853621403,0.00086,65247.0,65246.0,1.41532312]
[1718853621577,0.01039651,65247.0,65246.0,1.42932312]
[1718853623619,0.01039651,65247.0,65246.0,1.48902312]
[1718853624238,0.00086,65247.0,65246.0,1.48902312]
[1718853624867,0.00086,65247.0,65246.0,1.48902312]
[1718853628480,0.0103948,65247.0,65246.0,1.48902312]
[1718853628908,0.00086,65247.0,65246.0,1.11279112]
[1718853629065,0.00086,65247.0,65246.0,0.048]
[1718853629503,0.01536,65247.0,65246.0,0.048]
[1718853629709,0.02489452,65247.0,65246.0,0.048]
[1718853629961,0.02489452,65247.0,65246.0,0.034]
[1718853630415,0.02489452,65247.0,65246.0,0.048]
[1718853631078,0.02489452,65247.0,65246.0,0.034]